fUST/lending_fUST_20250227
["ID","MTS","AMOUNT","RATE_DAILY","PERIOD"]
[354677526,1740612657269,-4718.47695458,0.00050135,120]
[354677527,1740612657278,-43162.05657419,0.00050135,33]
[354677528,1740612657288,-2778.45,0.00050135,120]
[354677529,1740612657411,-500.0,0.00050135,120]
[354677530,1740612657421,-500.0,0.00050135,120]
[354677531,1740612657431,-861.01,0.00050135,120]
[354677532,1740612657441,-659.09,0.00050135,120]
[354677533,1740612657450,-1687.34,0.00050135,120]
[354677534,1740612657459,-1507.91,0.00050135,120]
[354677535,1740612657469,-795.66,0.00050135,120]
[354677536,1740612657478,-500.0,0.00050135,120]
[354677537,1740612657488,-1484.64,0.00050135,120]
[354677538,1740612657497,-896.66,0.00050135,120]
[354677539,1740612657507,-1237.88,0.00050135,120]
[354677540,1740612657516,-1998.85,0.00050135,120]
[354677541,1740612657525,-500.0,0.00050135,120]
[354677542,1740612657535,-1476.84,0.00050135,120]
[354677543,1740612657544,-500.0,0.00050135,120]
[354677544,1740612657554,-842.28,0.00050135,120]
[354677545,1740612657563,-1327.97,0.00050135,120]
[354677546,1740612657573,-978.17,0.00050135,120]
[354677547,1740612657583,-500.0,0.00050135,45]
[354677548,1740612657592,-35665.21,0.00050135,120]
[354677549,1740612657601,-500.0,0.00050135,120]
[354677550,1740612657611,-1674.6,0.00050135,120]
[354677551,1740612657621,-3374.64,0.00050135,120]
[354677552,1740612657630,-3689.39,0.00050135,120]
[354677553,1740612657641,-999.91,0.00050135,120]
[354677554,1740612657654,-1654.58,0.00050135,120]
[354677555,1740612657663,-8800.67,0.00050135,120]
[354677556,1740612657672,-572.35,0.00050135,120]
[354677557,1740612657683,-2141.75,0.00050135,120]
[354677558,1740612657696,-500.0,0.00050135,120]
[354677559,1740612657707,-15272.81,0.00050135,120]
[354677560,1740612657717,-500.0,0.00050135,120]
[354677561,1740612657727,-1712.31,0.00050135,120]
[354677562,1740612657738,-1889.46,0.00050135,120]
[354677563,1740612657747,-500.0,0.00050135,120]
[354677564,1740612657757,-112701.3,0.00050135,7]
[354677565,1740612657769,-500.0,0.00050135,120]
[354677566,1740612657778,-1846.65,0.00050135,120]
[354677567,1740612657788,-1230.19,0.00050135,120]
[354677568,1740612657798,-385.543995,0.00050135,120]
[354677569,1740612657807,-385.543995,0.00050135,120]
[354677570,1740612657817,-500.0,0.00050135,120]
[354677571,1740612657826,-513.49,0.00050135,120]
[354677572,1740612657835,-500.0,0.00050135,120]
[354677573,1740612657844,-562.96,0.00050135,120]
[354677574,1740612657853,-151.0,0.00050135,120]
[354677575,1740612657863,-382.945595,0.00050135,120]
[354677576,1740612657872,-382.945595,0.00050135,120]
[354677577,1740612657881,-500.0,0.00050135,120]
[354677578,1740612657891,-500.0,0.00050135,120]
[354677579,1740612657901,-500.0,0.00050135,120]
[354677580,1740612657910,-150.06758891,0.00050136,120]
[354677581,1740612657919,-445.42433287,0.00050136,120]
[354677582,1740612657929,-381.23246238,0.00050136,120]
[354677583,1740612657938,-500.0,0.00050136,120]
[354677584,1740612657947,-500.0,0.00050136,120]
[354677585,1740612657957,-500.0,0.00050136,120]
[354677586,1740612657966,-500.0,0.00050136,120]
[354677587,1740612657975,-500.0,0.00050136,120]
[354677588,1740612657985,-663.11,0.00050136,120]
[354677589,1740612657993,-690.9,0.00050136,120]
[354677590,1740612658003,-500.0,0.00050136,120]
[354677591,1740612658012,-500.0,0.00050136,120]
[354677592,1740612658022,-434.03831374,0.00050136,120]
[354677593,1740612658031,-500.0,0.00050136,120]
[354677594,1740612658040,-500.0,0.00050136,120]
[354677595,1740612658049,-541.34,0.00050136,120]
[354677596,1740612658059,-545.66,0.00050136,120]
[354677597,1740612658067,-500.0,0.00050136,120]
[354677598,1740612658077,-683.01,0.00050136,120]
[354677599,1740612658086,-500.0,0.00050136,120]
[354677600,1740612658095,-500.0,0.00050136,120]
[354677601,1740612658104,-500.0,0.00050136,120]
[354677602,1740612658114,-611.34482723,0.00050136,120]
[354677603,1740612658123,-500.0,0.00050136,120]
[354677604,1740612658132,-880.49,0.00050136,120]
[354677605,1740612658141,-500.0,0.00050136,120]
[354677606,1740612658151,-500.0,0.00050136,120]
[354677607,1740612658160,-500.0,0.00050136,120]
[354677608,1740612658169,-500.0,0.00050136,120]
[354677609,1740612658179,-213.74450793,0.00050136,120]
[354677610,1740612658188,-500.0,0.00050136,120]
[354677611,1740612658198,-500.0,0.00050136,120]
[354677612,1740612658207,-500.0,0.00050136,120]
[354677613,1740612658216,-500.0,0.00050136,120]
[354677614,1740612658226,-500.0,0.00050136,120]
[354677615,1740612658235,-200.0,0.00050136,7]
[354677616,1740612658244,-500.0,0.00050136,120]
[354677617,1740612658253,-434.79642,0.00050136,120]
[354677618,1740612658262,-500.0,0.00050136,120]
[354677619,1740612658271,-1645.83,0.00050136,120]
[354677620,1740612658280,-458.439429,0.00050136,120]
[354677621,1740612658289,-500.0,0.00050136,120]
[354677622,1740612658298,-958.64,0.00050136,120]
[354677623,1740612658307,-500.0,0.00050136,120]
[354677624,1740612658316,-162.034499,0.00050136,120]
[354677625,1740612658326,-162.034499,0.00050136,120]
[354677626,1740612658335,-759.37,0.00050136,120]
[354677627,1740612658344,-500.0,0.00050136,120]
[354677628,1740612658354,-151.0,0.00050136,120]
[354677629,1740612658363,-500.0,0.00050136,120]
[354677630,1740612658372,-500.0,0.00050136,120]
[354677631,1740612658380,-810.724101,0.00050136,120]
[354677632,1740612658389,-500.0,0.00050136,120]
[354677633,1740612658399,-810.724101,0.00050136,120]
[354677634,1740612658408,-151.0,0.00050136,120]
[354677635,1740612658417,-151.0,0.00050136,120]
[354677636,1740612658427,-500.0,0.00050136,120]
[354677637,1740612658435,-151.0,0.00050136,120]
[354677638,1740612658444,-500.0,0.00050136,120]
[354677639,1740612658454,-1087.06,0.00050136,120]
[354677640,1740612658463,-151.0,0.00050136,120]
[354677641,1740612658472,-743.94,0.00050136,120]
[354677642,1740612658481,-1536.490674,0.00050136,120]
[354677643,1740612658490,-899.12,0.00050136,120]
[354677644,1740612658499,-411.67370485,0.00050136,120]
[354677645,1740612658508,-168.258599,0.00050136,120]
[354677646,1740612658517,-168.258599,0.00050136,120]
[354677647,1740612658526,-151.0,0.00050136,120]
[354677648,1740612658535,-502.0,0.00050136,120]
[354677649,1740612658544,-1139.33,0.00050136,120]
[354677650,1740612658553,-151.0,0.00050136,120]
[354677651,1740612658562,-969.63,0.00050136,120]
[354677652,1740612658571,-1562.95,0.00050136,120]
[354677653,1740612658580,-649.28,0.00050136,120]
[354677654,1740612658590,-502.0,0.00050136,120]
[354677655,1740612658599,-500.0,0.00050136,120]
[354677656,1740612658609,-500.0,0.00050136,120]
[354677657,1740612658618,-500.0,0.00050136,120]
[354677658,1740612658628,-500.0,0.00050136,120]
[354677659,1740612658637,-683.51,0.00050136,120]
[354677660,1740612658647,-502.22483993,0.00050136,120]
[354677661,1740612658656,-2036.394798,0.00050136,120]
[354677662,1740612658666,-2036.394798,0.00050136,120]
[354677663,1740612658675,-500.0,0.00050136,120]
[354677664,1740612658685,-500.0,0.00050136,120]
[354677665,1740612658698,-500.0,0.00050136,120]
[354677666,1740612658707,-618.32,0.00050136,120]
[354677667,1740612658716,-702.29,0.00050136,120]
[354677668,1740612658726,-413.365869,0.00050136,110]
[354677669,1740612658735,-413.365869,0.00050136,110]
[354677670,1740612658745,-500.0,0.00050136,120]
[354677671,1740612658754,-500.0,0.00050136,120]
[354677672,1740612658763,-151.0,0.00050136,120]
[354677673,1740612658774,-500.0,0.00050136,120]
[354677674,1740612658784,-506.46097388,0.00050136,120]
[354677675,1740612658793,-500.0,0.00050136,120]
[354677676,1740612658803,-151.0,0.00050136,120]
[354677677,1740612658812,-623.05,0.00050136,120]
[354677678,1740612658821,-812.36,0.00050136,120]
[354677679,1740612658831,-151.0,0.00050136,120]
[354677680,1740612658842,-500.0,0.00050136,120]
[354677681,1740612658851,-500.0,0.00050136,120]
[354677682,1740612658861,-500.0,0.00050136,120]
[354677683,1740612658871,-519.39479194,0.00050136,120]
[354677684,1740612658880,-977.8,0.00050136,120]
[354677685,1740612658889,-500.0,0.00050136,120]
[354677686,1740612658900,-500.0,0.00050136,120]
[354677687,1740612658909,-500.0,0.00050136,120]
[354677688,1740612658919,-689.260793,0.00050136,120]
[354677689,1740612658928,-476.944486,0.00050136,30]
[354677690,1740612658937,-689.260793,0.00050136,120]
[354677691,1740612658947,-476.944486,0.00050136,30]
[354677692,1740612658956,-500.0,0.00050136,120]
[354677693,1740612658965,-500.0,0.00050136,120]
[354677694,1740612658975,-151.0,0.00050136,120]
[354677695,1740612658984,-846.39,0.00050136,120]
[354677696,1740612658993,-322.736773,0.00050136,120]
[354677697,1740612659003,-500.0,0.00050136,120]
[354677698,1740612659012,-322.736773,0.00050136,120]
[354677699,1740612659021,-254.826343,0.00050136,120]
[354677700,1740612659030,-564.78,0.00050136,120]
[354677701,1740612659044,-254.826343,0.00050136,120]
[354677702,1740612659054,-241.442179,0.00050136,120]
[354677703,1740612659063,-539.55,0.00050136,120]
[354677704,1740612659071,-241.442179,0.00050136,120]
[354677705,1740612659080,-500.0,0.00050136,120]
[354677706,1740612659090,-151.0,0.00050136,120]
[354677707,1740612659098,-151.0,0.00050136,120]
[354677708,1740612659109,-151.0,0.00050136,120]
[354677709,1740612659118,-500.0,0.00050136,120]
[354677710,1740612659127,-1428.1,0.00050136,120]
[354677711,1740612659136,-500.0,0.00050136,120]
[354677712,1740612659146,-600.9,0.00050136,120]
[354677713,1740612659156,-500.0,0.00050136,120]
[354677714,1740612659165,-500.0,0.00050136,120]
[354677715,1740612659174,-500.0,0.00050136,120]
[354677716,1740612659183,-615.68,0.00050136,120]
[354677717,1740612659192,-346.35672643,0.00050136,120]
[354677718,1740612659202,-802.71,0.00050136,120]
[354677719,1740612659211,-859.89,0.00050136,120]
[354677720,1740612659221,-500.0,0.00050136,120]
[354677721,1740612659230,-441.70924259,0.00050136,120]
[354677722,1740612659239,-7716.64,0.00050136,120]
[354677723,1740612659249,-1087.51,0.00050136,120]
[354677724,1740612659260,-500.0,0.00050136,120]
[354677725,1740612659270,-151.0,0.00050136,120]
[354677726,1740612659279,-11356.27,0.00050136,120]
[354677727,1740612659288,-8145.14,0.00050136,120]
[354677728,1740612659297,-500.0,0.00050136,120]
[354677729,1740612659306,-500.0,0.00050136,120]
[354677730,1740612659315,-2928.74,0.00050136,120]
[354677731,1740612659325,-1626.2,0.00050136,120]
[354677732,1740612659335,-982.75,0.00050136,120]
[354677733,1740612659344,-513.83,0.00050136,120]
[354677734,1740612659353,-500.0,0.00050136,120]
[354677735,1740612659362,-500.0,0.00050136,120]
[354677736,1740612659371,-802.07,0.00050136,120]
[354677737,1740612659381,-3574.17,0.00050136,120]
[354677738,1740612659391,-500.0,0.00050136,120]
[354677739,1740612659401,-1405.43,0.00050136,120]
[354677740,1740612659410,-511.36,0.00050136,30]
[354677741,1740612659419,-7025.95,0.00050136,120]
[354677742,1740612659429,-500.0,0.00050136,120]
[354677743,1740612659439,-300.0,0.00050136,120]
[354677744,1740612659448,-500.0,0.00050136,120]
[354677745,1740612659458,-1769.31,0.00050136,120]
[354677746,1740612659467,-732.33,0.00050136,120]
[354677747,1740612659476,-11606.25,0.00050136,3]
[354677748,1740612659485,-500.0,0.00050136,120]
[354677749,1740612659600,-253.599015,0.00050136,120]
[354677750,1740612659610,-253.599015,0.00050136,120]
[354677751,1740612659620,-522.21,0.00050136,120]
[354677752,1740612659630,-6098.04,0.00050136,120]
[354677753,1740612659642,-977.962218,0.00050136,120]
[354677754,1740612659653,-531.78,0.00050136,120]
[354677755,1740612659662,-5165.94,0.00050136,120]
[354677756,1740612659671,-977.962218,0.00050136,120]
[354677757,1740612659680,-1296.39,0.00050136,120]
[354677758,1740612659693,-500.0,0.00050136,120]
[354677759,1740612659703,-927.24,0.00050136,2]
[354677760,1740612659712,-500.0,0.00050136,120]
[354677761,1740612659722,-745.32,0.00050136,120]
[354677762,1740612659732,-1319.72,0.00050136,120]
[354677763,1740612659741,-1434.05,0.00050136,120]
[354677764,1740612659751,-602.5,0.00050136,120]
[354677765,1740612659760,-901.96,0.00050136,120]
[354677766,1740612659770,-298.512815,0.00050136,120]
[354677767,1740612659780,-500.0,0.00050136,120]
[354677768,1740612659788,-11788.68,0.00050136,120]
[354677769,1740612659799,-298.512815,0.00050136,120]
[354677770,1740612659808,-3610.93,0.00050136,120]
[354677771,1740612659818,-506.91,0.00050136,120]
[354677772,1740612659827,-1267.92,0.00050136,120]
[354677773,1740612659836,-2222.15,0.00050136,120]
[354677774,1740612659846,-600.75,0.00050136,120]
[354677775,1740612659855,-500.0,0.00050136,120]
[354677776,1740612659865,-963.51,0.00050136,120]
[354677777,1740612659874,-1872.17,0.00050136,120]
[354677778,1740612659883,-7675.21,0.00050136,120]
[354677779,1740612659892,-3447.65,0.00050136,120]
[354677780,1740612659902,-500.0,0.00050136,120]
[354677781,1740612659912,-714.42,0.00050136,120]
[354677782,1740612659923,-500.0,0.00050136,120]
[354677783,1740612659933,-500.0,0.00050136,120]
[354677784,1740612659942,-1518.89,0.00050136,120]
[354677785,1740612659952,-828.63,0.00050136,120]
[354677786,1740612659962,-500.0,0.00050136,120]
[354677787,1740612659972,-500.0,0.00050136,120]
[354677788,1740612659981,-874.37,0.00050136,120]
[354677789,1740612659990,-16446.27,0.00050136,120]
[354677790,1740612659999,-987.91,0.00050136,120]
[354677791,1740612660008,-544.41,0.00050136,120]
[354677792,1740612660019,-500.0,0.00050136,120]
[354677793,1740612660029,-501.13737797,0.00050136,120]
[354677794,1740612660039,-1207.51,0.00050142,120]
[354677795,1740612660048,-818.25,0.00050142,120]
[354677796,1740612660058,-582.64,0.00050142,120]
[354677797,1740612660067,-565.06,0.00050142,120]
[354677798,1740612660076,-797.5,0.00050142,120]
[354677799,1740612660085,-699.41,0.00050142,120]
[354677800,1740612660094,-2789.44,0.00050142,120]
[354677801,1740612660103,-650.93,0.00050142,120]
[354677802,1740612660112,-910.21,0.00050142,120]
[354677803,1740612660121,-3161.02,0.00050142,120]
[354677804,1740612660130,-500.0,0.00050142,120]
[354677805,1740612660139,-725.05,0.00050142,120]
[354677806,1740612660148,-500.0,0.00050142,120]
[354677807,1740612660157,-3123.49,0.00050142,120]
[354677808,1740612660167,-1532.22,0.00050142,120]
[354677809,1740612660176,-696.04,0.00050142,120]
[354677810,1740612660185,-775.5,0.00050142,120]
[354677811,1740612660194,-1560.0,0.00050142,120]
[354677812,1740612660205,-554.15,0.00050142,120]
[354677813,1740612660216,-508.29,0.00050142,120]
[354677814,1740612660229,-636.3,0.00050142,120]
[354677815,1740612660239,-1875.09,0.00050142,120]
[354677816,1740612660250,-454.54744121,0.00050142,120]
[354677817,1740612660259,-506.26,0.00050142,120]
[354677818,1740612660269,-727.01,0.00050142,120]
[354677819,1740612660278,-738.9,0.00050142,120]
[354677820,1740612660287,-500.0,0.00050142,120]
[354677821,1740612660297,-500.0,0.00050142,120]
[354677822,1740612660306,-500.0,0.00050142,120]
[354677823,1740612660316,-500.0,0.00050142,15]
[354677824,1740612660325,-500.0,0.00050142,120]
[354677825,1740612660335,-2768.85,0.00050142,120]
[354677826,1740612660344,-937.23,0.00050142,120]
[354677827,1740612660353,-786.35,0.00050142,120]
[354677828,1740612660363,-540.54,0.00050166,120]
[354677829,1740612660372,-717.99,0.00050166,120]
[354677830,1740612660381,-913.57,0.00050166,120]
[354677831,1740612660390,-500.0,0.00050166,120]
[354677832,1740612660400,-1771.38,0.00050166,120]
[354677833,1740612660409,-500.0,0.00050166,120]
[354677834,1740612660419,-1070.59,0.00050166,120]
[354677835,1740612660429,-500.0,0.00050166,120]
[354677836,1740612660440,-2028.34,0.00050166,120]
[354677837,1740612660449,-724.64,0.00050166,120]
[354677838,1740612660459,-500.0,0.00050166,120]
[354677839,1740612660468,-1677.07,0.00050166,120]
[354677840,1740612660478,-700.65,0.00050166,120]
[354677841,1740612660487,-1712.4,0.00050166,120]
[354677842,1740612660496,-500.0,0.00050166,120]
[354677843,1740612660506,-2539.69,0.00050166,120]
[354677844,1740612660518,-712.64,0.00050166,120]
[354677845,1740612660529,-500.0,0.00050166,120]
[354677846,1740612660540,-500.0,0.00050166,120]
[354677847,1740612660550,-810.43,0.00050166,120]
[354677848,1740612660559,-3307.1,0.00050166,120]
[354677849,1740612660569,-500.0,0.00050166,120]
[354677850,1740612660579,-500.0,0.00050166,120]
[354677851,1740612660588,-618.09,0.00050166,120]
[354677852,1740612660597,-882.96,0.00050166,120]
[354677853,1740612660607,-1050.94,0.00050166,120]
[354677854,1740612660619,-500.0,0.00050166,120]
[354677855,1740612660630,-500.0,0.00050166,120]
[354677856,1740612660641,-625.66,0.00050166,120]
[354677857,1740612660652,-1339.38,0.00050166,120]
[354677858,1740612660661,-778.41,0.00050166,120]
[354677859,1740612660671,-500.0,0.00050166,120]
[354677860,1740612660681,-500.0,0.00050166,120]
[354677861,1740612660693,-500.0,0.00050166,120]
[354677862,1740612660703,-536.72,0.00050166,120]
[354677863,1740612660713,-385.543995,0.00050166,120]
[354677864,1740612660723,-500.0,0.00050166,120]
[354677865,1740612660732,-385.543995,0.00050166,120]
[354677866,1740612660742,-151.0,0.00050166,120]
[354677867,1740612660752,-500.0,0.00050166,120]
[354677868,1740612660761,-382.945595,0.00050166,120]
[354677869,1740612660772,-382.945595,0.00050166,120]
[354677870,1740612660782,-500.0,0.00050166,120]
[354677871,1740612660791,-500.0,0.00050166,120]
[354677872,1740612660800,-500.0,0.00050168,31]
[354677873,1740612660810,-500.0,0.00050168,120]
[354677874,1740612660821,-500.0,0.00050168,120]
[354677875,1740612660831,-611.27,0.00050168,120]
[354677876,1740612660841,-500.0,0.00050188,2]
[354677877,1740612660850,-874.21,0.000502,30]
[354677878,1740612660859,-500.0,0.00050246,18]
[354677879,1740612660868,-238.81848925,0.00050271,28]
[354677880,1740612660878,-500.0,0.00050281,2]
[354677881,1740612660887,-500.0,0.00050288,2]
[354677882,1740612660897,-1000.0,0.000503,65]
[354677883,1740612660907,-500.0,0.00050344,18]
[354677884,1740612660917,-629.17,0.00050388,2]
[354677885,1740612660926,-2778.45,0.00050409,120]
[354677886,1740612660935,-500.0,0.00050409,120]
[354677887,1740612660944,-500.0,0.00050409,120]
[354677888,1740612660954,-861.01,0.00050409,120]
[354677889,1740612660963,-659.09,0.00050409,120]
[354677890,1740612660973,-1687.34,0.00050409,120]
[354677891,1740612660982,-1507.91,0.00050409,120]
[354677892,1740612660992,-795.66,0.00050409,120]
[354677893,1740612661001,-1484.64,0.00050409,120]
[354677894,1740612661010,-896.66,0.00050409,120]
[354677895,1740612661019,-1237.88,0.00050409,120]
[354677896,1740612661029,-1998.85,0.00050409,120]
[354677897,1740612661038,-322.736773,0.00050409,120]
[354677898,1740612661047,-322.736773,0.00050409,120]
[354677899,1740612661056,-254.826343,0.00050409,120]
[354677900,1740612661065,-254.826343,0.00050409,120]
[354677901,1740612661074,-500.0,0.00050409,120]
[354677902,1740612661083,-1476.84,0.00050409,120]
[354677903,1740612661093,-500.0,0.00050409,120]
[354677904,1740612661103,-842.28,0.00050409,120]
[354677905,1740612661112,-1327.97,0.00050409,120]
[354677906,1740612661122,-978.17,0.00050409,120]
[354677907,1740612661131,-151.0,0.00050409,120]
[354677908,1740612661140,-500.0,0.00050409,45]
[354677909,1740612661149,-35665.21,0.00050409,120]
[354677910,1740612661159,-500.0,0.00050409,120]
[354677911,1740612661168,-1674.6,0.00050409,120]
[354677912,1740612661178,-3374.64,0.00050409,120]
[354677913,1740612661187,-3689.39,0.00050409,120]
[354677914,1740612661196,-999.91,0.00050409,120]
[354677915,1740612661206,-1654.58,0.00050409,120]
[354677916,1740612661215,-8800.67,0.00050409,120]
[354677917,1740612661224,-572.35,0.00050409,120]
[354677918,1740612661233,-2141.75,0.00050409,120]
[354677919,1740612661242,-500.0,0.00050409,120]
[354677920,1740612661251,-15272.81,0.00050409,120]
[354677921,1740612661261,-500.0,0.00050409,120]
[354677922,1740612661270,-1712.31,0.00050409,120]
[354677923,1740612661279,-1889.46,0.00050409,120]
[354677924,1740612661288,-265.26645994,0.00050409,120]
[354677925,1740612661297,-112701.3,0.00050409,7]
[354677926,1740612661306,-500.0,0.00050409,120]
[354677927,1740612661315,-1846.65,0.00050409,120]
[354677928,1740612661324,-1230.19,0.00050409,120]
[354677929,1740612661333,-500.0,0.00050409,120]
[354677930,1740612661342,-513.49,0.00050409,120]
[354677931,1740612661351,-500.0,0.00050409,120]
[354677932,1740612661360,-562.96,0.00050409,120]
[354677933,1740612661369,-500.0,0.00050409,120]
[354677934,1740612661379,-500.0,0.00050409,120]
[354677935,1740612661388,-500.0,0.00050409,120]
[354677936,1740612661397,-500.0,0.0005041,120]
[354677937,1740612661408,-500.0,0.0005041,120]
[354677938,1740612661418,-500.0,0.0005041,120]
[354677939,1740612661427,-500.00000401,0.0005041,120]
[354677940,1740612661436,-663.11,0.0005041,120]
[354677941,1740612661445,-690.9,0.0005041,120]
[354677942,1740612661454,-500.0,0.0005041,120]
[354677943,1740612661463,-500.0,0.0005041,120]
[354677944,1740612661473,-500.0,0.0005041,120]
[354677945,1740612661482,-541.34,0.0005041,120]
[354677946,1740612661491,-545.66,0.0005041,120]
[354677947,1740612661499,-500.0,0.0005041,120]
[354677948,1740612661508,-683.01,0.0005041,120]
[354677949,1740612661517,-479.0,0.0005041,120]
[354677950,1740612661526,-500.0,0.0005041,120]
[354677951,1740612661535,-500.0,0.0005041,120]
[354677952,1740612661640,-500.0,0.0005041,120]
[354677953,1740612661659,-880.49,0.0005041,120]
[354677954,1740612661669,-500.0,0.0005041,120]
[354677955,1740612661678,-500.0,0.0005041,120]
[354677956,1740612661687,-500.0,0.0005041,120]
[354677957,1740612661699,-500.0,0.0005041,120]
[354677958,1740612661711,-500.0,0.0005041,120]
[354677959,1740612661720,-500.0,0.0005041,120]
[354677960,1740612661731,-500.0,0.0005041,120]
[354677961,1740612661742,-500.0,0.0005041,120]
[354677962,1740612661750,-500.0,0.0005041,120]
[354677963,1740612661760,-200.0,0.0005041,7]
[354677964,1740612661770,-500.0,0.0005041,120]
[354677965,1740612661780,-434.79642,0.0005041,120]
[354677966,1740612661790,-1645.83,0.0005041,120]
[354677967,1740612661799,-958.64,0.0005041,120]
[354677968,1740612661808,-500.0,0.0005041,120]
[354677969,1740612661817,-162.034499,0.0005041,120]
[354677970,1740612661826,-162.034499,0.0005041,120]
[354677971,1740612661835,-759.37,0.0005041,120]
[354677972,1740612661845,-500.0,0.0005041,120]
[354677973,1740612661854,-151.0,0.0005041,120]
[354677974,1740612661864,-500.0,0.0005041,120]
[354677975,1740612661873,-179.05304315,0.0005041,120]
[354677976,1740612661882,-810.724101,0.0005041,120]
[354677977,1740612661893,-810.724101,0.0005041,120]
[354677978,1740612661904,-500.0,0.0005041,120]
[354677979,1740612661913,-810.724101,0.0005041,120]
[354677980,1740612661922,-810.724101,0.0005041,120]
[354677981,1740612661931,-256.946194,0.0005041,120]
[354677982,1740612661941,-151.0,0.0005041,120]
[354677983,1740612661951,-151.0,0.0005041,120]
[354677984,1740612661960,-500.0,0.0005041,120]
[354677985,1740612661969,-176.6332,0.0005041,120]
[354677986,1740612661979,-500.0,0.0005041,120]
[354677987,1740612661988,-1087.06,0.0005041,120]
[354677988,1740612661997,-151.0,0.0005041,120]
[354677989,1740612662007,-743.94,0.0005041,120]
[354677990,1740612662016,-1536.490674,0.0005041,120]
[354677991,1740612662025,-899.12,0.0005041,120]
[354677992,1740612662034,-168.258599,0.0005041,120]
[354677993,1740612662044,-168.258599,0.0005041,120]
[354677994,1740612662055,-151.0,0.0005041,120]
[354677995,1740612662065,-1139.33,0.0005041,120]
[354677996,1740612662074,-151.0,0.0005041,120]
[354677997,1740612662086,-969.63,0.0005041,120]
[354677998,1740612662097,-1562.95,0.0005041,120]
[354677999,1740612662107,-649.28,0.0005041,120]
[354678000,1740612662119,-500.0,0.0005041,120]
[354678001,1740612662129,-500.0,0.0005041,120]
[354678002,1740612662139,-500.0,0.0005041,120]
[354678003,1740612662148,-500.0,0.0005041,120]
[354678004,1740612662158,-683.51,0.0005041,120]
[354678005,1740612662168,-2036.394798,0.0005041,120]
[354678006,1740612662177,-2036.394798,0.0005041,120]
[354678007,1740612662187,-500.0,0.0005041,120]
[354678008,1740612662197,-500.0,0.0005041,120]
[354678009,1740612662207,-618.32,0.0005041,120]
[354678010,1740612662217,-702.29,0.0005041,120]
[354678011,1740612662228,-413.365869,0.0005041,110]
[354678012,1740612662238,-413.365869,0.0005041,110]
[354678013,1740612662247,-500.0,0.0005041,120]
[354678014,1740612662258,-306.84597564,0.0005041,120]
[354678015,1740612662268,-151.0,0.0005041,120]
[354678016,1740612662278,-500.0,0.0005041,120]
[354678017,1740612662289,-500.0,0.0005041,120]
[354678018,1740612662298,-151.0,0.0005041,120]
[354678019,1740612662308,-623.05,0.0005041,120]
[354678020,1740612662318,-812.36,0.0005041,120]
[354678021,1740612662328,-151.0,0.0005041,120]
[354678022,1740612662338,-500.0,0.0005041,120]
[354678023,1740612662347,-500.0,0.0005041,120]
[354678024,1740612662356,-500.0,0.0005041,120]
[354678025,1740612662366,-977.8,0.0005041,120]